fUSD/lending_fUSD_20260626
["ID","MTS","AMOUNT","RATE_DAILY","PERIOD"]
[426475850,1782436235000,-461.64965896,0.00011674,2]
[426475852,1782436235000,-175.39883327,0.00011674,2]
[426475855,1782436235000,-500.0,0.00011674,2]
[426475857,1782436235000,-500.0,0.00011674,2]
[426475853,1782436235000,-500.0,0.00011674,2]
[426475885,1782436238000,-500.0,0.00011675,2]
[426475884,1782436238000,-418.39765353,0.00011675,2]
[426476106,1782436240000,-2250.00205252,0.00011675,2]
[426476103,1782436240000,-443.905,0.00011675,2]
[426476215,1782436243000,-3990.04676089,0.00011675,2]
[426476213,1782436243000,-152.13615494,0.00011674,2]
[426476214,1782436243000,-2339.20959497,0.00011675,2]
[426476216,1782436246000,-500.0,0.0001128,2]
[426476217,1782436246000,-504.86724472,0.0001128,2]
[426476219,1782436246000,-500.0,0.0001128,2]
[426476218,1782436246000,-500.0,0.0001128,2]
[426476220,1782436246000,-500.0,0.0001128,2]
[426476225,1782436246000,-1977.45890056,0.00011675,2]
[426476221,1782436246000,-500.0,0.0001128,2]
[426476224,1782436246000,-500.0,0.0001128,2]
[426476223,1782436246000,-500.0,0.0001128,2]
[426476222,1782436246000,-500.0,0.0001128,2]
[426476226,1782436246000,-347520.85798903,0.00011675,2]
[426476227,1782436247000,-2747.09630529,0.00011675,2]
[426476231,1782436340000,164.20409679,0.00030136,120]
[426476232,1782436387000,175.68695355,7.945e-05,2]
[426476233,1782436387000,1236.44259245,7.945e-05,2]
[426476234,1782436400000,150.0,0.0001052,2]
[426476236,1782436571000,2478.14234457,0.00010442,2]
[426476237,1782436571000,1415.59572239,0.00010442,2]
[426476235,1782436571000,1125.80193304,0.00010442,2]
[426476238,1782436598000,436.66,0.00010346,2]
[426476239,1782436624000,257.04,0.00010381,2]
[426476240,1782436631000,1430.86353563,0.00037255,120]
[426476250,1782436677000,1263.30449594,0.0001029,2]
[426476248,1782436677000,3555.62258316,0.0001029,2]
[426476249,1782436677000,1982.77091496,0.0001029,2]
[426476247,1782436677000,1992.21138039,0.0001029,2]
[426476245,1782436677000,1997.65184454,0.0001029,2]
[426476244,1782436677000,2333.31561084,0.0001029,2]
[426476243,1782436677000,2371.28744605,0.0001029,2]
[426476246,1782436677000,1849.90949534,0.0001029,2]
[426476242,1782436677000,1917.97258705,0.0001029,2]
[426476241,1782436677000,1163.45364173,0.0001029,2]
[426476251,1782436714000,200.0,0.00010157,2]
[426476253,1782436716000,1533.98034594,0.00010157,2]
[426476252,1782436716000,501.69965406,0.00010157,2]
[426476255,1782436753000,-199.03,0.00010508,2]
[426476257,1782436792000,833.92,0.00010137,2]
[426476259,1782436794000,658.99582149,0.00010104,2]
[426476258,1782436794000,307.71417851,0.00010104,2]
[426476260,1782436900000,159.55,8.06e-05,2]
[426476261,1782436923000,985.30482176,0.00010051,2]
[426476262,1782436923000,2204.71517824,0.00010051,2]
[426476263,1782436967000,47.36641497,9.611e-05,2]
[426476264,1782436967000,122.21358503,9.611e-05,2]
[426476265,1782436970000,421.29,9.611e-05,2]
[426476266,1782437070000,150.0,9.836e-05,2]
[426476267,1782437187000,844.83,9.545e-05,2]
[426476268,1782437191000,150.0,9.786e-05,2]
[426476269,1782437202000,2901.036498,9.989e-05,2]
[426476270,1782437204000,-301.24262482,0.0001004,2]
[426476271,1782437306000,298.89579896,9.99e-05,2]
[426476272,1782437314000,471.96,9.663e-05,2]
[426476273,1782437350000,398.49,9.545e-05,2]
[426476274,1782437360000,-4258.34490238,0.0001004,2]
[426476275,1782437360000,-4258.34490238,0.0001004,2]
[426476283,1782437360000,-578.0,0.0001014,2]
[426476277,1782437360000,-3357.45258895,0.0001004,2]
[426476280,1782437360000,-152.0,0.00010139,2]
[426476278,1782437360000,-250.0,0.0001009,2]
[426476279,1782437360000,-308.39557854,0.00010133,2]
[426476281,1782437360000,-190.49673489,0.0001014,2]
[426476284,1782437360000,-150.0,0.00010153,2]
[426476276,1782437360000,-4258.34490238,0.0001004,2]
[426476285,1782437360000,-500.0,0.00010165,2]
[426476293,1782437360000,-298.89579896,0.00010441,2]
[426476294,1782437360000,-152.0,0.00010441,2]
[426476292,1782437360000,-166.88,0.00010417,2]
[426476290,1782437360000,-152.0,0.0001034,2]
[426476282,1782437360000,-138.67495598,0.0001014,2]
[426476289,1782437360000,-160.0,0.000103,2]
[426476288,1782437360000,-152.0,0.0001024,2]
[426476286,1782437360000,-298.89579896,0.00010216,2]
[426476287,1782437360000,-167.12813474,0.00010236,2]
[426476291,1782437360000,-833.92,0.00010391,2]
[426476295,1782437361000,-150.93408092,0.00010511,2]
[426476298,1782437361000,-14.25484119,0.00010511,2]
[426476297,1782437361000,-136.67923973,0.00010511,2]
[426476300,1782437361000,-57.06856119,0.00010539,2]
[426476296,1782437361000,-150.93408092,0.00010511,2]
[426476305,1782437361000,-4258.34490238,0.00010541,2]
[426476301,1782437361000,-942.93143881,0.00010539,2]
[426476306,1782437361000,-4258.34490238,0.00010541,2]
[426476303,1782437361000,-3165.41346357,0.00010541,2]
[426476299,1782437361000,-4187.0215,0.00010537,2]
[426476302,1782437361000,-150.0,0.0001054,2]
[426476304,1782437361000,-4258.34490238,0.00010541,2]
[426476307,1782437404000,291.0,0.00037252,120]
[426476308,1782437408000,883.20388286,0.00037252,120]
[426476309,1782437409000,459.05255261,0.00037252,120]
[426476310,1782437411000,273.97558003,0.00037252,120]
[426476313,1782437413000,190.50361616,0.00037252,120]
[426476312,1782437413000,167.92801144,0.00037252,120]
[426476311,1782437413000,500.0,0.00037252,120]
[426476314,1782437414000,232.18,0.00037252,120]
[426476315,1782437415000,168.84997701,0.00037252,120]
[426476317,1782437417000,192.58917697,0.00037252,120]
[426476316,1782437417000,211.40304776,0.00037252,120]
[426476318,1782437418000,21715.45,0.00037252,120]
[426476319,1782437422000,210.870047,0.00037252,120]
[426476320,1782437423000,154.88,0.000315,120]
[426476321,1782437424000,181.89382465,0.00037252,120]
[426476323,1782437428000,229.60328238,0.00037252,120]
[426476324,1782437429000,631.68907651,0.00037252,120]
[426476325,1782437431000,500.0,0.00037252,120]
[426476360,1782437432000,-500.0,0.00010636,2]
[426476359,1782437432000,-500.0,0.00010636,2]
[426476355,1782437432000,-500.0,0.00010636,2]
[426476357,1782437432000,-500.0,0.00010636,2]
[426476353,1782437432000,-500.0,0.00010636,2]
[426476344,1782437432000,-500.0,0.00010636,2]
[426476350,1782437432000,-500.0,0.00010636,2]
[426476349,1782437432000,-500.0,0.00010636,2]
[426476348,1782437432000,-500.0,0.00010636,2]
[426476346,1782437432000,-500.0,0.00010636,2]
[426476345,1782437432000,-500.0,0.00010636,2]
[426476343,1782437432000,-172.26748682,0.00010615,2]
[426476340,1782437432000,-168.628321,0.00010562,2]
[426476351,1782437432000,-500.0,0.00010636,2]
[426476341,1782437432000,-162.60452248,0.00010607,2]
[426476339,1782437432000,-244.71518169,0.00010562,2]
[426476338,1782437432000,-152.0,0.00010541,2]
[426476336,1782437432000,-152.0,0.00010541,2]
[426476335,1782437432000,-152.0,0.00010541,2]
[426476334,1782437432000,-152.0,0.00010541,2]
[426476337,1782437432000,-152.0,0.00010541,2]
[426476332,1782437432000,-252.2207147,0.0001054,2]
[426476333,1782437432000,-29024.63864445,0.00010541,2]
[426476331,1782437432000,-150.0,0.0001054,2]
[426476330,1782437432000,-150.0,0.0001033,2]
[426476329,1782437432000,-1454.58,0.0001012,2]
[426476327,1782437432000,-154.81,0.00010028,2]
[426476326,1782437432000,444.62724366,0.00037252,120]
[426476362,1782437432000,-161.07988743,0.00010636,2]
[426476342,1782437432000,-162.60452248,0.00010607,2]
[426476364,1782437432000,-500.0,0.00010636,2]
[426476347,1782437432000,-500.0,0.00010636,2]
[426476367,1782437432000,-500.0,0.00010636,2]
[426476399,1782437432000,-166.48,0.00010813,2]
[426476396,1782437432000,-160.0,0.00010673,2]
[426476395,1782437432000,-150.0,0.00010662,2]
[426476397,1782437432000,-152.0,0.00010742,2]
[426476393,1782437432000,-7318.08431789,0.00010644,2]
[426476394,1782437432000,-150.0,0.00010644,2]
[426476392,1782437432000,-2681.90568211,0.00010644,2]
[426476391,1782437432000,-833.92,0.00010644,2]
[426476390,1782437432000,-299.99,0.00010641,2]
[426476388,1782437432000,-4999.99,0.00010641,2]
[426476389,1782437432000,-9999.99,0.00010641,2]
[426476387,1782437432000,-9999.99,0.00010641,2]
[426476386,1782437432000,-9999.99,0.00010641,2]
[426476384,1782437432000,-150.99,0.00010637,2]
[426476385,1782437432000,-152.0,0.00010641,2]
[426476366,1782437432000,-500.0,0.00010636,2]
[426476383,1782437432000,-999.99,0.00010637,2]
[426476382,1782437432000,-1658.46,0.00010637,2]
[426476369,1782437432000,-500.0,0.00010636,2]
[426476370,1782437432000,-500.0,0.00010636,2]
[426476371,1782437432000,-500.0,0.00010636,2]
[426476373,1782437432000,-500.0,0.00010636,2]
[426476375,1782437432000,-233.94799915,0.00010636,2]
[426476376,1782437432000,-500.0,0.00010636,2]
[426476374,1782437432000,-500.0,0.00010636,2]
[426476377,1782437432000,-500.0,0.00010636,2]
[426476398,1782437432000,-2500.0,0.0001081,2]
[426476378,1782437432000,-262.56640412,0.00010636,2]
[426476380,1782437432000,-577.7609813,0.00010636,2]
[426476381,1782437432000,-68435.29,0.00010637,2]
[426476379,1782437432000,-584.22248494,0.00010636,2]
[426476372,1782437432000,-500.0,0.00010636,2]
[426476425,1782437433000,-2917.72234845,0.0001118,2]
[426476420,1782437433000,-382.53012715,0.00011138,2]
[426476421,1782437433000,-833.92,0.00011151,2]
[426476424,1782437433000,-155.81452636,0.00011178,2]
[426476422,1782437433000,-166.66,0.00011178,2]
[426476426,1782437433000,-1452.23515155,0.0001118,2]
[426476428,1782437433000,-10932.2334472,0.00011216,2]
[426476435,1782437433000,-966.71,0.00011367,2]
[426476429,1782437433000,-636.74,0.00011227,2]
[426476430,1782437433000,-195.94,0.00011233,2]
[426476432,1782437433000,-419.95,0.00011251,2]
[426476431,1782437433000,-407.87,0.00011251,2]
[426476433,1782437433000,-154.81,0.00011282,2]
[426476414,1782437433000,-331.96805665,0.00011044,2]
[426476434,1782437433000,-166.66,0.00011288,2]
[426476427,1782437433000,-500.0,0.00011184,2]
[426476415,1782437433000,-166.66,0.00011068,2]
[426476410,1782437433000,-150.0,0.00010972,2]
[426476417,1782437433000,-10932.23344725,0.00011099,2]
[426476401,1782437433000,-833.92,0.00010898,2]
[426476400,1782437433000,-152.0,0.00010842,2]
[426476402,1782437433000,-1334.72374393,0.00010909,2]
[426476404,1782437433000,-152.0,0.00010943,2]
[426476403,1782437433000,-500.0,0.0001091,2]
[426476405,1782437433000,-3206.4,0.00010959,2]
[426476406,1782437433000,-166.66,0.00010959,2]
[426476407,1782437433000,-150.0,0.00010959,2]
[426476408,1782437433000,-150.0,0.00010959,2]
[426476409,1782437433000,-152.0,0.00010972,2]
[426476436,1782437433000,-166.66,0.00011397,2]
[426476411,1782437433000,-160.0,0.00010989,2]
[426476413,1782437433000,-250.0,0.00011044,2]
[426476412,1782437433000,-154.0,0.00011043,2]
[426476416,1782437433000,-500.0,0.00011096,2]
[426476419,1782437433000,-152.0,0.00011124,2]
[426476437,1782437433000,-4096.36957995,0.00011446,2]
[426476418,1782437433000,-151.0,0.00011124,2]
[426476439,1782437433000,-20022.7045,0.00011447,2]
[426476461,1782437433000,-500.0,0.00011546,2]
[426476460,1782437433000,-500.0,0.00011546,2]
[426476462,1782437433000,-314.58648098,0.00011546,2]
[426476463,1782437433000,-500.0,0.00011546,2]
[426476466,1782437433000,-500.0,0.00011546,2]
[426476464,1782437433000,-500.0,0.00011546,2]
[426476465,1782437433000,-500.0,0.00011546,2]
[426476458,1782437433000,-582.98604096,0.00011546,2]
[426476468,1782437433000,-500.0,0.00011546,2]
[426476469,1782437433000,-152.47240945,0.00011546,2]
[426476470,1782437433000,-450.0,0.00011546,2]
[426476471,1782437433000,-12385.71855909,0.00011547,2]
[426476473,1782437433000,-4740.78573392,0.00011547,2]
[426476472,1782437433000,-708.24423702,0.00011547,2]
[426476474,1782437433000,-2574.93626761,0.00011547,2]
[426476438,1782437433000,-1000.0,0.00011447,2]
[426476467,1782437433000,-500.0,0.00011546,2]
[426476457,1782437433000,-187.7416042,0.00011546,2]
[426476423,1782437433000,-151.0,0.00011178,2]
[426476456,1782437433000,-500.0,0.00011546,2]
[426476441,1782437433000,-363.28682859,0.00011448,2]
[426476443,1782437433000,-500.0,0.00011458,2]
[426476442,1782437433000,-256.98955322,0.00011448,2]
[426476445,1782437433000,-163.87,0.00011508,2]
[426476447,1782437433000,-500.0,0.00011546,2]
[426476446,1782437433000,-156.79,0.00011508,2]
[426476449,1782437433000,-500.0,0.00011546,2]
[426476444,1782437433000,-166.66,0.00011507,2]
[426476450,1782437433000,-285.61950236,0.00011546,2]
[426476448,1782437433000,-324.59737678,0.00011546,2]
[426476454,1782437433000,-500.0,0.00011546,2]
[426476455,1782437433000,-500.0,0.00011546,2]
[426476453,1782437433000,-500.0,0.00011546,2]
[426476440,1782437433000,-6830.8209,0.00011447,2]
[426476452,1782437433000,-500.0,0.00011546,2]
[426476459,1782437433000,-500.0,0.00011546,2]
[426476451,1782437433000,-500.0,0.00011546,2]
[426476475,1782437436000,275.02072658,0.00037252,120]
[426476476,1782437437000,248.0,0.00037252,120]
[426476487,1782437438000,211.51949398,0.00037252,120]
[426476486,1782437438000,-98.83021093,0.00011548,2]
[426476485,1782437438000,-151.788589,0.00011538,2]
[426476484,1782437438000,199.39411741,0.00037252,120]
[426476478,1782437438000,269.0,0.00037252,120]
[426476477,1782437438000,218.0,0.00037252,120]
[426476496,1782437440000,-28985.66838057,0.00011548,2]
[426476495,1782437440000,-1693.58703692,0.00011548,2]
[426476498,1782437441000,188.64732488,0.00037252,120]
[426476497,1782437441000,219.44888913,0.00037252,120]
[426476514,1782437443000,176.35587071,0.00037252,120]
[426476512,1782437443000,-4831.51109048,0.00011548,2]
[426476513,1782437443000,-3816.69115574,0.00011548,2]
[426476511,1782437443000,-1884.50890952,0.00011548,2]
[426476510,1782437443000,-33.47144069,0.00011548,2]
[426476509,1782437443000,-157821.88758363,0.00011548,2]
[426476499,1782437443000,160.70958328,0.00037252,120]
[426476517,1782437445000,271.67150425,0.00037252,120]
[426476516,1782437445000,303.724585,0.00037252,120]
[426476536,1782437447000,-1183.57050695,0.00011548,2]
[426476535,1782437447000,590.95670092,0.00037252,120]
[426476538,1782437448000,156.04477603,0.00037252,120]
[426476537,1782437448000,270.41889472,0.00037252,120]
[426476539,1782437451000,150.43185103,0.00037252,120]
[426476540,1782437453000,241.10618447,0.00037252,120]
[426476541,1782437457000,194.96263252,0.00037252,120]
[426476542,1782437462000,209.37266554,0.00037252,120]
[426476543,1782437467000,211.81852655,0.00037252,120]
[426476544,1782437470000,219.67638233,0.00037252,120]
[426476545,1782437471000,236.62466913,0.00037252,120]
[426476546,1782437474000,402.35203269,0.00037252,120]
[426476547,1782437475000,181.73057053,0.00037252,120]
[426476548,1782437477000,241.02462761,0.00037252,120]
[426476549,1782437480000,232.2776312,0.00037252,120]
[426476550,1782437481000,445.36231764,0.00037252,120]
[426476551,1782437483000,1815.29,0.00037252,120]
[426476553,1782437488000,260.08397748,0.00037252,120]
[426476552,1782437488000,231.94183109,0.00037252,120]
[426476554,1782437489000,230.4235792,0.00037252,120]
[426476555,1782437490000,208.65590509,0.00037252,120]
[426476556,1782437494000,291.58302376,0.00037252,120]
[426476558,1782437499000,192.38124772,0.00037252,120]
[426476557,1782437499000,500.0,0.00037252,120]
[426476559,1782437501000,169.36853449,0.00037252,120]
[426476560,1782437503000,259.54945151,0.00037252,120]
[426476561,1782437504000,161.21306839,0.00037252,120]
[426476562,1782437508000,165.80696584,0.00037252,120]
[426476563,1782437508000,236.90186827,0.00037252,120]
[426476564,1782437511000,630.88131144,0.00037252,120]
[426476565,1782437514000,150.0,9.71e-05,2]
[426476566,1782437514000,199.85351268,0.00037252,120]
[426476567,1782437515000,238.19168919,0.00037252,120]
[426476570,1782437518000,267.22816052,0.00037252,120]
[426476569,1782437518000,188.2182642,0.00037252,120]
[426476568,1782437518000,322.72227425,0.00037252,120]
[426476572,1782437520000,591.9302974,0.00037252,120]
[426476571,1782437520000,195.91907924,0.00037252,120]
[426476573,1782437522000,487.95176621,0.00037252,120]
[426476574,1782437524000,500.0,0.00037252,120]
[426476577,1782437525000,547.68975966,0.00037252,120]
[426476575,1782437525000,500.0,0.00037252,120]
[426476578,1782437525000,317.6203,0.00037252,120]
[426476576,1782437525000,500.0,0.00037252,120]
[426476579,1782437529000,157.9978364,0.00037252,120]
[426476580,1782437531000,245.70278953,0.00037252,120]
[426476581,1782437533000,197.08909455,0.00037252,120]
[426476582,1782437538000,166.21117925,0.00037252,120]
[426476583,1782437540000,349.27432643,0.00037252,120]
[426476584,1782437541000,218.43601043,0.00037252,120]
[426476585,1782437546000,258.27939842,0.00037252,120]
[426476587,1782437548000,272.54512812,0.00037252,120]
[426476586,1782437548000,444.2442959,0.00037252,120]
[426476588,1782437551000,222.26163954,0.00037252,120]
[426476589,1782437552000,313.29250624,0.00037252,120]
[426476590,1782437555000,162.44293674,0.00037252,120]
[426476592,1782437559000,221.68238111,0.00037252,120]
[426476591,1782437559000,173.67275492,0.00037252,120]
[426476595,1782437560000,200.74994977,0.00037252,120]
[426476594,1782437560000,265.59624722,0.00037252,120]
[426476593,1782437560000,253.53912199,0.00037252,120]
[426476596,1782437562000,567.3508,0.00037252,120]
[426476597,1782437562000,162.13476375,0.00037252,120]
[426476599,1782437564000,216.61589821,0.00037252,120]
[426476598,1782437564000,208.75699682,0.00037252,120]
[426476601,1782437566000,193.19910863,0.00037252,120]
[426476600,1782437566000,179.9261584,0.00037252,120]
[426476603,1782437568000,166.85432116,0.00037252,120]
[426476602,1782437568000,500.0,0.00037252,120]
[426476604,1782437569000,484.58380796,0.00037252,120]
[426476605,1782437571000,177.04884615,0.00037252,120]
[426476606,1782437572000,273.30469444,0.00037252,120]
[426476607,1782437573000,179.59935332,0.00037252,120]
[426476608,1782437574000,416.999999,0.00037252,120]
[426476610,1782437575000,172.93234083,0.00037252,120]
[426476609,1782437575000,150.0,9.71e-05,2]
[426476612,1782437576000,375.88674427,0.00037252,120]
[426476611,1782437576000,278.8686502,0.00037252,120]
[426476613,1782437578000,174.74064989,0.00037252,120]
[426476614,1782437583000,200.26206891,0.00037252,120]
[426476615,1782437585000,153.45465851,0.00037252,120]
[426476616,1782437585000,1379.4726,0.00037252,120]
[426476617,1782437587000,257.32635613,0.00037252,120]
[426476618,1782437590000,181.0240833,0.00037252,120]
[426476619,1782437590000,257.26213428,0.00037252,120]
[426476622,1782437592000,457.85142887,0.00037252,120]
[426476620,1782437592000,500.0,0.00037252,120]
[426476621,1782437592000,500.0,0.00037252,120]
[426476623,1782437595000,268.84867258,0.00037252,120]
[426476624,1782437598000,216.73685056,0.00037252,120]
[426476625,1782437607000,210.1604359,0.00037252,120]
[426476626,1782437612000,185.76392015,0.00037252,120]
[426476628,1782437614000,267.03836947,0.00037252,120]
[426476627,1782437614000,233.15460797,0.00037252,120]
[426476629,1782437616000,193.9484867,0.00037252,120]
[426476632,1782437618000,332.17061355,0.00037252,120]
[426476631,1782437618000,541.71929539,0.00037252,120]
[426476630,1782437618000,500.0,0.00037252,120]
[426476633,1782437620000,219.69026823,0.00037252,120]
[426476634,1782437621000,222.37702249,0.00010751,7]
[426476635,1782437623000,195.48802841,0.00037252,120]
[426476636,1782437625000,179.25598121,0.00037252,120]
[426476638,1782437625000,208.71725861,0.00037252,120]
[426476637,1782437625000,170.7029762,0.00037252,120]
[426476639,1782437626000,576.46239515,0.00037252,120]
[426476640,1782437630000,268.74189877,0.00037252,120]
[426476641,1782437631000,167.02408632,0.00037252,120]
[426476643,1782437634000,169.2193089,0.00037252,120]
[426476642,1782437634000,188.99150185,0.00037252,120]
[426476644,1782437635000,213.48913967,0.00037252,120]
[426476645,1782437637000,150.0,9.71e-05,2]
[426476646,1782437640000,157.17992361,0.00037252,120]
[426476648,1782437640000,500.0,0.00037252,120]
[426476647,1782437640000,169.85895113,0.00037252,120]
[426476649,1782437641000,274.57850435,0.00037252,120]
[426476650,1782437642000,266.61185496,0.00037252,120]
[426476651,1782437643000,254.9425089,0.00037252,120]
[426476652,1782437650000,159.9477346,0.00037252,120]
[426476653,1782437651000,165.15043605,0.00037252,120]
[426476654,1782437652000,208.47265898,0.00037252,120]
[426476655,1782437654000,443.60253381,0.00037252,120]
[426476656,1782437656000,283.62484973,0.00037252,120]
[426476657,1782437657000,273.90607638,0.00037252,120]
[426476658,1782437662000,194.47241634,0.00037252,120]
[426476659,1782437665000,203.10553603,0.00037252,120]
[426476660,1782437665000,249.46473087,0.00037252,120]
[426476661,1782437671000,252.61529916,0.00037252,120]
[426476662,1782437675000,178.90820215,0.00037252,120]
[426476663,1782437677000,284.65628146,0.00037252,120]
[426476664,1782437679000,181.73828394,0.00037252,120]
[426476665,1782437685000,178.78236959,0.00037252,120]
[426476667,1782437697000,150.0,9.71e-05,2]
[426476668,1782437700000,500.0,9.91e-05,2]
[426476669,1782437739000,9172.95,0.000315,120]
[426476670,1782437750000,791.53275603,0.000315,120]
[426476671,1782437757000,150.0,9.71e-05,2]
[426476672,1782437817000,153.01689159,0.00037252,120]
[426476673,1782437877000,2595.35883581,9.91e-05,2]
[426476674,1782437885000,8797.6472624,0.00037252,120]
[426476675,1782437887000,868.61,9.852e-05,2]
[426476676,1782437897000,1445.21,9.826e-05,2]
[426476677,1782437966000,206.03487639,9.91e-05,2]
[426476678,1782437974000,173.17766383,0.00037249,120]
[426476679,1782437983000,972.66,9.925e-05,2]
[426476680,1782438047000,1166.48,9.883e-05,2]
[426476681,1782438050000,3047.172359,9.959e-05,2]
[426476682,1782438062000,150.0,9.71e-05,2]
[426476683,1782438069000,254.0,0.00037249,120]
[426476684,1782438102000,150.0,0.00037249,120]
[426476685,1782438123000,150.0,9.71e-05,2]
[426476686,1782438185000,150.0,9.71e-05,2]
[426476688,1782438245000,150.0,9.71e-05,2]
[426476689,1782438249000,17776.77,9.429e-05,2]
[426476690,1782438288000,158.69352048,0.00037249,120]
[426476691,1782438294000,206.03487639,9.91e-05,2]
[426476692,1782438314000,200.0,9.462e-05,2]
[426476693,1782438316000,154.37606854,0.00037249,120]
[426476694,1782438409000,166.48,9.804e-05,2]
[426476696,1782438498000,-163.38054871,0.0001001,2]
[426476697,1782438498000,-250.0,0.0001001,2]
[426476700,1782438498000,-163.82,0.0001001,2]
[426476695,1782438498000,-604.76246447,0.0001001,2]
[426476698,1782438498000,-165.68281122,0.0001001,2]
[426476701,1782438498000,-216.45114417,0.00010012,2]
[426476702,1782438498000,-160.0,0.00010015,2]
[426476699,1782438498000,-250.0,0.0001001,2]
[426476711,1782438499000,-1577.99449783,0.00010174,2]
[426476709,1782438499000,-299.99,0.00010174,2]
[426476710,1782438499000,-763.73559544,0.00010174,2]
[426476708,1782438499000,-150.0,0.00010173,2]
[426476706,1782438499000,-206.03487639,0.00010137,2]
[426476707,1782438499000,-300.0,0.00010173,2]
[426476705,1782438499000,-212.77,0.0001011,2]
[426476704,1782438499000,-254.82,0.00010042,2]
[426476703,1782438499000,-177.95,0.00010027,2]
[426476712,1782438523000,-1000.0,0.00010137,2]
[426476714,1782438523000,-315.08666453,0.00010174,2]
[426476713,1782438523000,-706.35990673,0.00010174,2]
[426476734,1782438632000,-421.43,0.00010529,2]
[426476740,1782438632000,-177.95,0.00010529,2]
[426476742,1782438632000,-160.0,0.00010555,2]
[426476751,1782438632000,-500.0,0.00011011,2]
[426476741,1782438632000,-879.15027736,0.00010536,2]
[426476733,1782438632000,-9999.99,0.00010529,2]
[426476739,1782438632000,-150.99,0.00010529,2]
[426476735,1782438632000,-9999.99,0.00010529,2]
[426476728,1782438632000,-225.35396929,0.00010287,2]
[426476738,1782438632000,-9999.99,0.00010529,2]
[426476737,1782438632000,-299.99,0.00010529,2]
[426476736,1782438632000,-999.99,0.00010529,2]
[426476732,1782438632000,-175.70364902,0.00010507,2]
[426476747,1782438632000,-150.0,0.00010959,2]
[426476730,1782438632000,-164.57,0.00010453,2]
[426476729,1782438632000,-272.0455321,0.00010365,2]
[426476727,1782438632000,-500.0,0.00010287,2]
[426476722,1782438632000,-500.0,0.0001019,2]
[426476725,1782438632000,-218.25,0.00010237,2]
[426476726,1782438632000,-500.0,0.00010287,2]
[426476720,1782438632000,-216.45114417,0.00010174,2]
[426476724,1782438632000,-193.0,0.00010205,2]
[426476719,1782438632000,-9296.87,0.00010174,2]
[426476721,1782438632000,-250.0,0.0001019,2]
[426476723,1782438632000,-300.0,0.0001019,2]
[426476718,1782438632000,-9999.99,0.00010174,2]
[426476731,1782438632000,-160.0,0.00010455,2]
[426476743,1782438632000,-285.05513885,0.00010659,2]
[426476776,1782438632000,-166.66,0.00011397,2]
[426476744,1782438632000,-1056.78,0.00010716,2]
[426476780,1782438632000,-409.2275621,0.00011454,2]
[426476779,1782438632000,-1211.50634483,0.00011454,2]
[426476781,1782438632000,-428.76776636,0.00011454,2]
[426476777,1782438632000,-14725.33436062,0.00011454,2]
[426476775,1782438632000,-2435.75234696,0.00011375,2]
[426476774,1782438632000,-64.24765304,0.00011375,2]
[426476773,1782438632000,-500.0,0.00011374,2]
[426476772,1782438632000,-195.0368747,0.00011348,2]
[426476771,1782438632000,-166.66,0.00011288,2]
[426476769,1782438632000,-352.18183861,0.00011278,2]
[426476767,1782438632000,-152.91,0.00011233,2]
[426476778,1782438632000,-2008.999503,0.00011454,2]
[426476765,1782438632000,-300.0,0.00011191,2]
[426476750,1782438632000,-250.0,0.00011011,2]
[426476763,1782438632000,-250.0,0.00011191,2]